Cogmind - Beta 13 @@@ ROGUE MODE // 2024.06.01 @ 17:30:56 Player: saltine Result: Destroyed by Y-54 Guardian with Gatling Laser Performance ------------- Evolutions (4) 2000 Regions Visited (5) 1000 Robots Destroyed (81) 405 Value Destroyed (2842) 2842 Prototype IDs (2) 40 Alien Tech Used (0) 0 Bonus (249) 249 TOTAL SCORE: 6536 Bonus ------- Pacifist 200 High Alert Combat Kills 49 Cogmind --------- Core Integrity 0/850 Matter 90/300 Energy 150/150 System Corruption 1% Temperature Cool (12) Movement Rolling (90) Location -6/Factory Parts ------- > --- POWER (1) -------- Micro Nuclear Core > --- PROPULSION (5) --- Armored Wheel Armored Wheel Armored Wheel > --- UTILITY (6) ------ Improved Signal Interpreter Improved Targeting Computer > --- WEAPON (3) ------- (None) > --- INVENTORY (5) ---- Improved Signal Interpreter Improved Medium Armor Plating Hacking Suite System Shield Peak State ------------ > --- POWER ------------ Micro Nuclear Core > --- PROPULSION ------- Light Treads Light Treads Light Treads Improved Treads Improved Treads > --- UTILITY ---------- Improved Heat Sink Large Storage Unit Improved Signal Interpreter Hardened Medium Armor Plating Improved Light Armor Plating Improved Medium Armor Plating > --- WEAPON ----------- Phase Cannon Advanced Assault Cannon Magnetic Acceleration Cannon > --- INVENTORY -------- Micro Nuclear Core Light Treads Cesium-ion Thruster Xenon Bombardment Thruster Improved Signal Interpreter Hacking Suite System Shield Long-range Tractor Beam Phase Cannon Flak Gun Advanced Assault Cannon Improved Grenade Launcher Improved Grenade Launcher Heavy Missile Launcher [Rating: 46] Favorites ----------- Power Ion Engine Engine Ion Engine Power Core Micro Nuclear Core Reactor Cold Fusion Reactor Propulsion Light Treads Treads Light Treads Leg Flexi-carbon Leg Wheel Armored Wheel Flight Unit Xenon Bombardment Thruster Utility Improved Signal Interpreter Device Improved Heat Sink Storage Large Storage Unit Processor Improved Signal Interpreter Protection Improved Medium Armor Plating Weapon Advanced Assault Cannon Energy Gun Small Laser Energy Cannon Phase Cannon Ballistic Gun Assault Rifle Ballistic Cannon Advanced Assault Cannon Launcher Improved Grenade Launcher Build | -11 -10 -9 -8 -7 -6 ------- Run | Yrd Mat Mat Mat Fac Fac Slots Evolved 8 | . . 2 2 2 2 Power . | . . . . . . Propulsion 3 | . . 1 1 1 . Utility 4 | . . 1 1 1 1 Weapon 1 | . . . . . 1 Parts Attached 61 | 6 1 11 4 11 28 Power 6 | 1 . . . 2 3 Engine 3 | 1 . . . 2 . Core 2 | . . . . . 2 Reactor 1 | . . . . . 1 Propulsion 23 | 2 . 5 2 2 12 Treads 14 | 2 . 5 2 2 3 Leg 2 | . . . . . 2 Wheel 4 | . . . . . 4 Hover . | . . . . . . Flight 3 | . . . . . 3 Utility 15 | 1 . 2 2 5 5 Device 2 | . . . . . 2 Storage 2 | 1 . . . 1 . Processor 3 | . . 1 . 1 1 Hackware . | . . . . . . Protection 8 | . . 1 2 3 2 Artifact . | . . . . . . Weapon 17 | 2 1 4 . 2 8 Energy Gun 1 | 1 . . . . . Energy Cannon 5 | . . 2 . 1 2 Ballistic Gun 2 | 1 . . . . 1 Ballistic Cannon 6 | . 1 2 . 1 2 Launcher 3 | . . . . . 3 Special Weapon . | . . . . . . Impact Weapon . | . . . . . . Slashing Weapon . | . . . . . . Piercing Weapon . | . . . . . . Special Melee Weapon . | . . . . . . Unidentified Prototypes 2 | . . 1 . . 1 Parts Lost 33 | . . 3 . . 30 Power 1 | . . . . . 1 Propulsion 15 | . . 2 . . 13 Utility 7 | . . . . . 7 Weapon 10 | . . 1 . . 9 Highest Loss Streak 5 | . . 2 . . 5 To Critical Strikes . | . . . . . . Average Slot Usage (%) 82 | . 85 79 98 95 74 Engine 5 | . 14 11 9 6 . Reactor 1 | . . . . . 2 Treads 24 | . 28 24 34 35 17 Device 2 | . . . . . 6 Storage 7 | . 14 11 9 7 5 Processor 7 | . . 5 9 7 9 Protection 12 | . . 5 18 22 9 Energy Cannon 5 | . . 5 9 6 4 Ballistic Gun 1 | . 14 5 . . . Ballistic Cannon 9 | . 8 10 9 6 10 Naked Turns . | . . . . . . Heaviest Build 69 | 13 15 20 23 57 69 Greatest Support 106 | 40 40 60 80 106 106 Greatest Overweight (x) 22 | 3 . . . . 22 Average Overweight (x) . | . . . . . 1 Largest Inventory Capacity 15 | 8 8 8 8 15 15 Average Capacity 12 | 7 8 8 8 14 14 Most Carried 15 | 2 8 8 8 15 15 Average Carried 10 | 1 6 7 7 12 12 Final Capacity 15 | 8 8 8 8 15 5 Final Carried 15 | 2 8 8 8 15 4 Class Distribution -------------------- 37% | Mutant 32% | Scavenger-Mutant 20% | Scavenger-Tank 6% | Gunner 3% | Tank Dominant Class ---------------- Mutant | -10/Materials Mutant | -9/Materials Scavenger-Mutant | -8/Materials Scavenger-Mutant | -7/Factory Scavenger-Tank | -6/Factory Resources | -11 -10 -9 -8 -7 -6 ----------- Run | Yrd Mat Mat Mat Fac Fac Matter Collected 2092 | 202 . 472 90 186 1142 Remotely 204 | . . . . . 204 Salvage Created 2668 | . . 548 312 149 1659 Parts 126 | . . 36 16 8 66 Haulers Intercepted 3 | . . 1 1 . 1 Recyclers Shooed 4 | . . 1 . . 3 Parts Field Recycled . | . . . . . . Retrieved Matter . | . . . . . . Parts Self-Destructed . | . . . . . . Prevented . | . . . . . . Kills | -11 -10 -9 -8 -7 -6 ------- Run | Yrd Mat Mat Mat Fac Fac Combat Hostiles Destroyed 62 | . . 16 5 4 37 Guns 6 | . . 5 . . 1 Cannons 47 | . . 11 4 4 28 AOE 9 | . . . 1 . 8 Classes Destroyed 12 | . . 5 1 1 5 Worker 7 | . . . 1 . 6 Builder 3 | . . . . . 3 Hauler 3 | . . 1 1 . 1 Recycler 4 | . . . . . 4 Mechanic 1 | . . . . . 1 Watcher 1 | . . 1 . . . Swarmer 18 | . . 5 . . 13 Grunt 23 | . . 6 3 2 12 Brawler 1 | . . . . . 1 Sentry 11 | . . 5 2 1 3 Hunter 5 | . . . . . 5 Programmer 4 | . . . . 1 3 Best Kill Streak 5 | . . 5 3 1 5 Combat Bots Only 5 | . . 5 2 1 5 Max Kills in Single Turn 2 | . . 2 2 1 2 Gunslinging . | . . . . . . Exploded 2 | . . . 1 . 2 Melee . | . . . . . . Uniques/NPCs Destroyed . | . . . . . . Combat | -11 -10 -9 -8 -7 -6 -------- Run | Yrd Mat Mat Mat Fac Fac Hostile Shots Fired 591 | . . 88 21 80 402 Missed 181 | . . 28 8 26 119 Damage Taken 5992 | . . 738 235 602 4417 Core 1045 | . . 128 15 47 855 Absorbed by Shields . | . . . . . . Core Remaining (%) 91 | 100 100 68 97 93 . Volleys Fired 200 | . . 51 14 22 113 Largest 3 | . . 2 2 2 3 Hottest 186 | . . 103 103 113 186 Shots Fired 415 | . . 102 28 34 251 Gun 50 | . . 44 . . 6 Cannon 350 | . . 58 28 34 230 Launcher 15 | . . . . . 15 Special . | . . . . . . Kinetic 291 | . . 95 14 20 162 Thermal 109 | . . 7 14 14 74 Explosive 15 | . . . . . 15 Electromagnetic . | . . . . . . Robot Hit Streak 15 | . . 9 4 10 15 Robot Miss Streak 3 | . . 3 2 2 3 Penetration Max . | . . . . . . Secondary Targets . | . . . . . . Shots Hit Robots 275 | . . 66 17 25 167 Core Hits 143 | . . 28 15 8 92 Critical Kills . | . . . . . . Critical Parts Destroyed . | . . . . . . Critical Strikes 10 | . . 2 1 1 6 Blast 10 | . . 2 1 1 6 Melee Attacks . | . . . . . . Impact . | . . . . . . Slashing . | . . . . . . Piercing . | . . . . . . Sneak Attacks . | . . . . . . Combat Hostiles . | . . . . . . Follow-up Attacks . | . . . . . . Damage Inflicted 8350 | . . 1028 448 677 6197 Guns 504 | . . 389 . . 115 Cannons 6084 | . . 630 332 656 4466 Explosions 1705 | . . . 116 . 1589 Melee . | . . . . . . Ramming 57 | . . 9 . 21 27 Kinetic 4402 | . . 957 124 346 2975 Thermal 2380 | . . 62 208 310 1800 Explosive 1395 | . . . . . 1395 Electromagnetic 116 | . . . 116 . . Impact . | . . . . . . Slashing . | . . . . . . Piercing . | . . . . . . Highest Corruption 1 | . . . 1 . 1 Average Corruption 1 | . . . 1 . 1 Corruption Purged . | . . . . . . Corruption Blocked . | . . . . . . Effects 8 | . . . 1 . 7 Message Errors 2 | . . . . . 2 Matter Fused 2 | . . . . . 2 Energy Discharges 2 | . . . . . 2 Data Loss (minor) 2 | . . . 1 . 1 Overload Shots . | . . . . . . Overflow Damage 183 | . . . . . 183 Projectiles 52 | . . . . . 52 Explosions 131 | . . . . . 131 Melee . | . . . . . . Knockbacks 44 | . . 7 1 4 32 Impact . | . . . . . . Kinetic 41 | . . 7 1 4 29 Secondary 3 | . . . . . 3 Self-Inflicted Damage 615 | . . . 36 . 579 Shots 14 | . . . 1 . 13 Rammed 9 | . . 5 . 3 1 Targets Rammed 15 | . . 5 . 3 7 Kicked 6 | . . . . . 6 Crushed . | . . . . . . Highest Temperature 449 | . . 180 288 325 449 Average Temperature 123 | . . 39 103 167 132 Received Heat Transfer 1623 | . . 297 99 288 939 Effects 12 | . . . 1 2 9 Shutdowns 1 | . . . . . 1 Energy Bleed 4 | . . . 1 1 2 Interference 7 | . . . . 1 6 Siege Activations . | . . . . . . Robots Corrupted . | . . . . . . Combat Hostiles . | . . . . . . Parts Fried . | . . . . . . Impact Corruptions . | . . . . . . Robots Melted . | . . . . . . Combat Hostiles . | . . . . . . Parts Melted 1 | . . . . . 1 Heat Transferred 3012 | . . 111 370 407 2124 Parts Sabotaged . | . . . . . . Parts Stolen . | . . . . . . Parts Stripped . | . . . . . . Power Chain Reactions . | . . . . . . Alert | -11 -10 -9 -8 -7 -6 ------- Run | Yrd Mat Mat Mat Fac Fac Peak Influence 551 | . 34 437 290 146 551 Initial 131 | . . 14 83 131 2 Average 131 | . 19 223 192 64 157 Maximum Alert Level 2 | . . 2 1 . 2 Low Security (%) 75 | 100 100 28 54 100 74 Level 1 22 | . . 68 45 . 20 Level 2 2 | . . 3 . . 4 Level 3 . | . . . . . . Level 4 . | . . . . . . Level 5 . | . . . . . . High Security . | . . . . . . Max Security . | . . . . . . Squads Dispatched 14 | . . . . 2 12 Investigation . | . . . . . . Extermination 4 | . . . . 1 3 Reinforcement 10 | . . . . 1 9 Assault . | . . . . . . Garrison . | . . . . . . Intercept . | . . . . . . Searches Triggered . | . . . . . . Construction Impeded 3 | . . . . . 3 Haulers Reinforced 2 | . . . . . 2 Active Scanning Responses . | . . . . . . Cargo Convoy Interrupts . | . . . . . . Stealth | -11 -10 -9 -8 -7 -6 --------- Run | Yrd Mat Mat Mat Fac Fac Distress Signals 8 | . . 4 1 1 2 Communications Jammed . | . . . . . . Distress Signals . | . . . . . . Times Spotted 91 | . 5 22 8 7 49 Peak Tracking Total 6 | . 2 6 5 4 5 Tactical Retreats 4 | . . 1 . 1 2 Traps | -11 -10 -9 -8 -7 -6 ------- Run | Yrd Mat Mat Mat Fac Fac Traps Triggered 2 | . . 2 . . . Indirectly . | . . . . . . Trap Hack Attempts . | . . . . . . Triggered . | . . . . . . Disarmed . | . . . . . . Reprogrammed . | . . . . . . Reused . | . . . . . . Traps Extracted . | . . . . . . Installed . | . . . . . . Triggered . | . . . . . . Machines | -11 -10 -9 -8 -7 -6 ---------- Run | Yrd Mat Mat Mat Fac Fac Machines Disabled 13 | . . 1 1 1 10 Max in Single Turn 3 | . . 1 1 1 3 Machines Repaired . | . . . . . . Machines Dismantled . | . . . . . . Machines Sabotaged . | . . . . . . Overloaded Fab Kills . | . . . . . . Hacking | -11 -10 -9 -8 -7 -6 --------- Run | Yrd Mat Mat Mat Fac Fac Machines Accessed 18 | . 5 4 1 6 2 Terminals 13 | . 3 4 1 4 1 Fabricators 1 | . . . . 1 . Repair Stations . | . . . . . . Recycling Units 4 | . 2 . . 1 1 Scanalyzers . | . . . . . . Garrison Access . | . . . . . . Total Hacks 37 | . 11 7 3 13 3 Successful 13 | . 6 3 2 2 . Failed 24 | . 5 4 1 11 3 Catastrophic 8 | . 1 2 . 3 2 Database Lockouts . | . . . . . . Manual 25 | . 7 6 1 11 . Terminals 32 | . 9 7 3 11 2 Fabricators 1 | . . . . 1 . Repair Stations . | . . . . . . Recycling Units 4 | . 2 . . 1 1 Scanalyzers . | . . . . . . Garrison Access . | . . . . . . Terminal Hacks 6 | . 2 2 1 1 . Branch Access Points 1 | . 1 . . . . Terminal Index 4 | . 1 1 1 1 . Hauler Manifests 1 | . . 1 . . . Fabricator Hacks 1 | . . . . 1 . Network Status 1 | . . . . 1 . Repair Station Hacks . | . . . . . . Recycling Unit Hacks . | . . . . . . Scanalyzer . | . . . . . . Garrison Access Hacks . | . . . . . . Unauthorized Hacks 6 | . 4 1 1 . . Terminals 4 | . 2 1 1 . . Botnet 4 | . 2 1 1 . . Fabricators . | . . . . . . Repair Stations . | . . . . . . Recycling Units 2 | . 2 . . . . Monitor 1 | . 1 . . . . Mask 1 | . 1 . . . . Scanalyzers . | . . . . . . Garrison Access . | . . . . . . Data Cores Recovered . | . . . . . . Used . | . . . . . . Hacking Detections 13 | . 1 4 1 5 2 Full Trace Events 1 | . 1 . . . . Feedback Events . | . . . . . . Feedback Blocked . | . . . . . . Robot Schematics Acquired . | . . . . . . Robots Built . | . . . . . . Authchips . | . . . . . . Time . | . . . . . . Total Robot Build Rating . | . . . . . . Part Schematics Acquired . | . . . . . . Parts Built . | . . . . . . Authchips . | . . . . . . Time . | . . . . . . Total Part Build Rating . | . . . . . . Parts Repaired . | . . . . . . Time . | . . . . . . Parts Recycled . | . . . . . . Recycled Matter . | . . . . . . Retrieved Matter . | . . . . . . Retrieved Components . | . . . . . . Parts Scanalyzed . | . . . . . . Part Schematics Acquired . | . . . . . . Parts Damaged . | . . . . . . Bothacking | -11 -10 -9 -8 -7 -6 ------------ Run | Yrd Mat Mat Mat Fac Fac Used RIF Installer . | . . . . . . Robots Hacked . | . . . . . . Non-combat . | . . . . . . Combat . | . . . . . . Robot Hacks Applied . | . . . . . . Relay Couplers Released . | . . . . . . Fabnet Peak Effective % . | . . . . . . Robots Rewired . | . . . . . . Allies Hacked . | . . . . . . Hacks Repelled . | . . . . . . Allies | -11 -10 -9 -8 -7 -6 -------- Run | Yrd Mat Mat Mat Fac Fac Total Allies . | . . . . . . Largest Group . | . . . . . . Highest-Rated Group . | . . . . . . Highest-Rated Ally . | . . . . . . Total Orders . | . . . . . . Ally Attacks . | . . . . . . Total Damage . | . . . . . . Kills . | . . . . . . Allies Corrupted . | . . . . . . Allies Melted . | . . . . . . Intel | -11 -10 -9 -8 -7 -6 ------- Run | Yrd Mat Mat Mat Fac Fac Robot Analysis Total . | . . . . . . Derelict Logs Recovered . | . . . . . . Drone Launches . | . . . . . . Drone Recoveries . | . . . . . . Exploration | -11 -10 -9 -8 -7 -6 ------------- Run | Yrd Mat Mat Mat Fac Fac Turns Passed 5343 | 230 319 835 296 1329 2334 Spaces Moved 2442 | 85 191 407 140 768 851 Core 53 | 13 . . . . 40 Treads 2255 | 72 191 407 140 768 677 Legs 48 | . . . . . 48 Wheels 76 | . . . . . 76 Hover . | . . . . . . Flight 10 | . . . . . 10 Fastest Speed 34 | 50 160 160 160 160 34 Average Speed 174 | 152 160 160 160 160 203 Slowest Speed 1150 | 200 160 160 160 160 1150 Overloaded Moves . | . . . . . . Propulsion Burnouts . | . . . . . . Robots Hopped . | . . . . . . Cave-ins Triggered . | . . . . . . Exploration Rate (%) 24 | 5 34 42 15 23 29 Regions Visited 5 Branch Regions . Pre-discovered Areas . | . . . . . . Known Exits Taken 3 | . . 1 1 1 . Unknown Exits Taken 2 | 1 1 . . . . Scrap Searched . | . . . . . . Spaces Dug 1 | . . . . . 1 Terrain Destroyed 169 | . . . . 4 165 Melee . | . . . . . . Projectile 37 | . . . . 4 33 AOE 132 | . . . . . 132 Terrain Rammed . | . . . . . . Walls Destroyed . | . . . . . . Machines Disabled . | . . . . . . Actions | -11 -10 -9 -8 -7 -6 --------- Run | Yrd Mat Mat Mat Fac Fac Total 3130 | 183 206 484 186 835 1236 Wait 354 | 91 5 . 24 5 229 Move 2437 | 84 190 406 139 767 851 Hop . | . . . . . . Pick Up 32 | 2 8 5 2 13 2 Fast Attach 41 | 6 . 10 1 9 15 Attach 17 | . 1 1 1 1 13 Detach 2 | . . 1 . . 1 Swap 3 | . . . 2 1 . Drop 29 | . 2 5 3 14 5 Fire 200 | . . 51 14 22 113 Melee . | . . . . . . Ram . | . . . . . . Kick 6 | . . . . . 6 Crush 9 | . . 5 . 3 1 Escape Stasis . | . . . . . . Rewire . | . . . . . . Trap . | . . . . . . Miscellaneous . | . . . . . . Route ------- -11/Scrapyard -10/Materials (discovered 3 exits: *Mat / Min x2) -9/Materials -8/Materials -7/Factory (discovered 2 exits: *Fac / *Low) -6/Factory (discovered 1 exit: [*Fac]) History --------- Turn | Location | Event 13 | -11/Scrapyard | Discovered new exit (range 16) 231 | -11/Scrapyard | Entered Materials 308 | -10/Materials | Build established: Mutant 329 | -10/Materials | Discovered new exit (range 16) 491 | -10/Materials | Identified exit to Mines 550 | -10/Materials | Entered another Materials area 550 | -9/Materials | Evolved 2 slots: Propulsion x1, Utility x1 1315 | -9/Materials | Discovered new exit (range 14) 1367 | -9/Materials | Identified exit to Materials 1385 | -9/Materials | Entered another Materials area 1385 | -8/Materials | Evolved 2 slots: Propulsion x1, Utility x1 1604 | -8/Materials | Build established: Scavenger-Mutant 1624 | -8/Materials | Discovered new exit (range 16) 1646 | -8/Materials | Identified exit to Factory 1681 | -8/Materials | Entered Factory 1681 | -7/Factory | Evolved 2 slots: Propulsion x1, Utility x1 2521 | -7/Factory | Discovered new exit (range 12) 2540 | -7/Factory | Identified exit to Lower Caves 3001 | -7/Factory | Discovered new exit (range 8) 3009 | -7/Factory | Identified exit to Factory 3010 | -7/Factory | Entered another Factory area 3010 | -6/Factory | Evolved 2 slots: Utility x1, Weapon x1 3350 | -6/Factory | Build established: Scavenger-Tank 3981 | -6/Factory | Lost 3 parts (2n1u) 4166 | -6/Factory | Lost 5 parts (3n2u) 4409 | -6/Factory | Build established: Gunner 4659 | -6/Factory | Lost 3 parts (2u1w) 4922 | -6/Factory | Build established: Mutant 4982 | -6/Factory | Core integrity fell below 50% 5012 | -6/Factory | Lost 3 parts (1p2w) 5231 | -6/Factory | Lost 3 parts (2n1w) 5282 | -6/Factory | Spotted B-75 Beast 5283 | -6/Factory | Core integrity fell below 20% 5315 | -6/Factory | Lost 5 parts (3n1u1w) 5342 | -6/Factory | Discovered new exit (range 16) 5344 | -6/Factory | Destroyed by Y-54 Guardian with Gatling Laser Last Messages --------------- 05285_ K-01 Serf destroyed. 05285_ ALERT: Construction progress impeded, dispatching reinforcements to local area. 05285_ K-01 Serf cleans the Assembly Bed. 05287_ Acquired Arm. Wheel. 05288_ K-01 Serf collects debris. 05290_ Acquired Arm. Wheel. 05291_ R-10 Processor collects Field Recycling Unit. 05291_ K-01 Serf collects debris. 05293_ Acquired Arm. Wheel. 05294_ K-01 Serf collects debris. 05296_ R-10 Processor collects Autogun. 05298_ K-01 Serf collects debris. 05301_ R-10 Processor collects Wheel. 05301_ K-01 Serf collects debris. 05322_ Xenon Bombardment Thruster destroyed. 05322_ U-05 Engineer lays Concrete. 05326_ SG8HW/4H/YY,C>>GMSQ/ GYBK=,S3X 05342_ EXIT=FOUND Map ----- +----------------------------------------------------+ | ???????????????????????###+#######+### | | ???????????????????????# ^ | | ???????????????????????# ### | | ???????????????????????# #?# | | ???????????????????????# ^ #?# | | ???????????????????????# #?? | | ???????????????????????#############"" #?? | | ????????????????????????# !!! # #?? | | ????????????????????????# !!! # #??? | | ????????????????????????# " " " !! # #???? | | ????????????????????????? " " " # #???? | | ????????????????????????# " " " + #???? | | ????????????????????????# " " " # #???? | | ????????????????????????# " " " # #???? | | ????????????????????????# " " " # #???? | | ????????????????????????# " " " # #???? | | ????????????????????????# " " " # #???? | | ????????????????????????# " " " # #???? | | ????????????????????????# # ? ????? | | ????????????????????????########+##### ????????? | | ???????????????????????????????# #???????????????? | | ?????????????????????????????### ###?????????????? | | ??????????? ############### #?????????????? | | ?????????? ### ???? | | ?????????? < Y #???? | | ?????????? @ ######/##?????? | | ?????????????????##########+## #?????????????? | | ?????????????????????????! ## ##?????????????? | | ??????????????????????? ## #??????????????? | | ?????????????????????# """" ## +?????????????? | | ?????????????????????# """" ## ##?????????????? | | ?????????????????????# """" ## #??????????????? | | ?????????????????????# """" ### ##??????????????? | | ?????????????????????#???"" !#?? #???????????????? | | ??????????????????????????" #?? #???????????????? | | ?????????????????????????? #?? #???????????????? | | ?????????????????????????? #?? #???????????????? | | ?????????????????????????? #?? #???????????????? | | ??????????????????????????####?? #???????????????? | | ?????????????????????????????????????????????????? | | ?????????????????????????????????????????????????? | | ?????????????????????????????????????????????????? | | ?????????????????????????????????????????????????? | | ?????????????????????????????????????????????????? | | ?????????????????????????????????????????????????? | | ?????????????????????????????????????????????????? | | ?????????????????????????????????????????????????? | | ?????????????????????????????????????????????????? | | ????????????????????????????????########?????????? | | ????????????????????????????##### """ #?????????? | +----------------------------------------------------+ Best States ------------- Heat Dissipation 51 Energy Generation 17 Energy Capacity 250 Matter Stores 300 Matter Capacity 300 Sight Range 16 Terrain Scan Density 10 Armor Coverage 600 Evasion (%) 55 Targeting Accuracy 6 Recoil Reduction 5 Item Schematics ----------------- None Robot Schematics ------------------ None Fabricated ------------ Nothing Alien Tech Used ----------------- None Achievements -------------- Use The Force Challenges ------------ None Game ------ Seed NeutronHeavyTriangulator Manual? 0 Play Time 00:47:06 Cumulative 29.8 hours Start 2024.06.01 @ 14:57:56 End 2024.06.01 @ 17:30:56 Sessions 2 Manual Loads 0 Difficulty Rogue Special Mode None Game No. 43 Rogue 43 Adventurer 0 Explorer 0 Win Type - Total 1 Types 1/0/0/0/0/0/0/0/0 Lore% 24 Gallery% 33 Achievement% 23 Wizard Run 0 Options --------- Layout 1 ASCII 0 Keyboard 0 Movement Arrows Keybinds 0 Fullscreen 1 Font 24/Smallcaps Map View 50x35 Zoom Use 0% Tactical HUD 1 Map Filters NONE Filters NONE Steam 1 RUN: 8f92f43c-d616-45e5-8d53-5a74f0a8a06f